{"text_format":"1","workbook":"xlsx","n_sheets":15,"sheets":["Anykščiai","Biržai","Dubrava","Kazlų Rūda","Kretinga","Kuršėnai","Mažeikiai","Nemenčinė","Panevėžys","Prienai","Radviliškis","Raseiniai","Šalčininkai","Trakai","Ukmergės"],"not_rendered":{"charts":0,"images":0,"macros":0,"external_links":0,"defined_names":0,"comments":0,"pivot_tables":0},"unopened":[],"bounds":{"document_bytes":16777216,"sheet_cells":100000,"rows_first":2000,"rows_last":500,"rows_between":2000,"halvings":0,"cell_chars":16384,"cell_head_chars":4096},"cells_cut":0,"cells_raw":0,"read":"whole","date_system":"1900"}

{"sheet":"Anykščiai","index":0,"n_rows":29,"n_cols":6,"rows_kept":29,"cut":false,"hidden":false,"merged":[[0,0,0,19],[14,0,15,0],[14,1,15,1],[14,2,15,2],[1,3,1,4],[14,3,14,5],[23,0,24,0],[23,1,24,1],[25,0,25,2],[23,2,23,3],[3,0,3,2]]}
["VĮ Valstybinių miškų urėdijos Anykščių regioninio padalinio informacija apie perkamus miškininkystės paslaugų kiekius 2025 metams"]
["Eil. ","Paslaugų grupės ir paslaugų pavadinimai",null,"Preliminarios paslaugų apimtys"]
[1,"Želdaviečių paruošimas miškų sodinimui, želdinių ir žėlinių priežiūra, jaunuolynų ugdymas, griovių šlaitų ir pagriovių, pakelių, kvartalinių ir ribinių linijų priežiūra","Mato vnt.","  Kavarsko girininkija 1"," Troškūnų girininkija 1"]
["Pirkimo objekto dalies numeris",null,null,1,2]
["1.","Želdavietės paruošimas miško sodmenų sodinimui šalinant nepageidaujamus medžius, krūmus, žolinę augmeniją","ha"]
["2.","Medynų ir krūmynų pertvarkymo kirtimai šalinant nepageidaujamus medžius, krūmus, žolinę augmeniją ","ha"]
["3.","Miško želdinių ir žėlinių  priežiūra šalinant žabus ir žolinę augmeniją","ha",35,40]
["4.","Jaunuolynų ugdymas ir/ar retinimo kirtimai, negaminant likvidinės medienos ","ha"]
["5.","Griovių šlaitų ir pagriovių priežiūra","ha"]
["6.","Pakelių priežiūra","km"]
["7.","kvartalinių ir ribinių linijų priežūra","km"]
[null,null,null,{"$f":"+D5*301+D7*263+D8*299+D9*301+D10*53+D11*126+D6*301","v":9205},{"$f":"+E5*301+E7*263+E8*299+E9*301+E10*53+E11*126+E6*301","v":10520}]
[null,null,null,{"$f":"+D12*3*1.3","v":35899.5},{"$f":"+E12*3*1.3","v":41028}]
[]
["3.","Miško sodmenų sodinimas, želdinių ir žėlinių medelių ir jų liemenų apsauga nuo kanopinių žvėrių bei vabzdžių daromos žalos  ","Mato vnt.","Preliminarios paslaugų apimtys"]
[null,null,null," Troškūnų girininkija 2"," Kavarsko girininkija 2","Dubingių  girininkija "]
[null,"Pirkimo objekto numeris",null,3,4,5]
["8.","Miško atkūrimas, įveisimas ir atsodinimas (medelių ir krūmų sodinimas)","tūkst. vnt."]
["9.","Želdinių, žėlinių apsauga nuo kanopinių žvėrių bei vabzdžių daromos žalos ","tūkst. vnt.",28,61,85.7]
["10.","Želdinių, žėlinių ir medelių kamienų apsauga nuo kanopinių žvėrių daromos žalos","tūkst. vnt.",null,1,6.2]
[null,null,null,{"$f":"+D18*178+D19*27+D20*390","v":756},2037,4731.8999999999996]
[null,null,null,{"$f":"+D21*3*1.3","v":2948.4},7944.3,18454.41]
[]
["6.","Šiukšlių rinkimo paslaugos","Preliminarios paslaugų apimtys"]
[null,null,"Mato vnt.","Anykščių RP "]
["Pirkimo objekto dalies numeris",null,null,6]
["12.","Šiukšlių rinkimo paslaugos","val.",350]
[null,null,null,{"$f":"+D27*10","v":3500}]
[null,null,null,{"$f":"+D28*3*1.3","v":13650}]

{"sheet":"Biržai","index":1,"n_rows":9,"n_cols":4,"rows_kept":9,"cut":false,"hidden":false,"merged":[[0,0,0,9],[1,0,2,0],[1,1,2,1],[1,2,1,3],[3,0,3,2]]}
["VĮ Valstybinių miškų urėdijos Biržų regioninio padalinio informacija apie perkamus miškininkystės paslaugų kiekius 2025 metams"]
["3.","Miško sodmenų sodinimas, želdinių ir žėlinių medelių ir jų liemenų apsauga nuo kanopinių žvėrių bei vabzdžių daromos žalos  ","Preliminarios paslaugų apimtys"]
[null,null,"Mato vnt.","Linkuvos girininkija"]
["Pirkimo objekto dalies numeris",null,null,7]
["8.","Miško atkūrimas, įveisimas ir atsodinimas (medelių ir krūmų sodinimas)","tūkst. vnt."]
["9.","Želdinių, žėlinių apsauga nuo kanopinių žvėrių bei vabzdžių daromos žalos ","tūkst. vnt.",200]
["10.","Želdinių, žėlinių ir medelių kamienų apsauga nuo kanopinių žvėrių daromos žalos","tūkst. vnt."]
[null,null,null,{"$f":"+D5*178+D6*27+D7*390","v":5400}]
[null,null,null,{"$f":"+D8*3*1.3","v":21060}]

{"sheet":"Dubrava","index":2,"n_rows":9,"n_cols":5,"rows_kept":9,"cut":false,"hidden":false,"merged":[[0,0,0,10],[1,0,2,0],[1,1,2,1],[1,2,1,4],[3,0,3,2]]}
["VĮ Valstybinių miškų urėdijos Dubravos regioninio padalinio informacija apie perkamus miškininkystės paslaugų kiekius 2025 metams"]
["3.","Miško sodmenų sodinimas, želdinių ir žėlinių medelių ir jų liemenų apsauga nuo kanopinių žvėrių bei vabzdžių daromos žalos  ","Preliminarios paslaugų apimtys"]
[null,null,"Mato vnt.","Padauguvos girininkija","Sitkūnų girininkija"]
["Pirkimo objekto dalies numeris",null,null,8,9]
["8.","Miško atkūrimas, įveisimas ir atsodinimas (medelių ir krūmų sodinimas)","tūkst. vnt."]
["9.","Želdinių, žėlinių apsauga nuo kanopinių žvėrių bei vabzdžių daromos žalos ","tūkst. vnt.",210,300]
["10.","Želdinių, žėlinių ir medelių kamienų apsauga nuo kanopinių žvėrių daromos žalos","tūkst. vnt.",1,0.75]
[null,null,null,{"$f":"+D5*178+D6*27+D7*390","v":6060},{"$f":"+E5*178+E6*27+E7*390","v":8392.5}]
[null,null,null,{"$f":"+D8*3*1.3","v":23634},{"$f":"+E8*3*1.3","v":32730.75}]

{"sheet":"Kazlų Rūda","index":3,"n_rows":7,"n_cols":10,"rows_kept":7,"cut":false,"hidden":false,"merged":[[3,0,3,2],[0,0,0,10],[1,0,2,0],[1,1,2,1],[1,2,2,2],[1,3,1,9]]}
["VĮ Valstybinių miškų urėdijos Kazlų Rųdos regioninio padalinio informacija apie perkamus miškininkystės paslaugų kiekius"]
["6.","Šiukšlių rinkimo paslaugos","Mato vnt.","Preliminarios paslaugų apimtys"]
[null,null,null,"Agurkiškės girininkija","Bagotosios girininkija","Jūrės girininkija","Kalvarijos girininkija","Kazlų Rūdos girininkija","Pajevonio girininkija","Šunskų girininkija"]
["Pirkimo objekto dalies numeris",null,null,10,11,12,13,14,15,16]
["12.","Šiukšlių rinkimo paslaugos","val.",76,32,44,102,164,40,63]
[null,null,null,{"$f":"+D5*10","v":760},{"$f":"+E5*10","v":320},440,1020,1640,400,630]
[null,null,null,{"$f":"+D6*3*1.3","v":2964},{"$f":"+E6*3*1.3","v":1248},1716,3978,6396,1560,2457]

{"sheet":"Kretinga","index":4,"n_rows":22,"n_cols":6,"rows_kept":22,"cut":false,"hidden":false,"merged":[[14,0,15,0],[14,1,15,1],[14,2,14,5],[16,0,16,2],[0,0,0,10],[3,0,3,2],[1,2,1,3]]}
["VĮ Valstybinių miškų urėdijos Kretingos regioninio padalinio informacija apie perkamus miškininkystės paslaugų kiekius 2025 metams"]
["Eil. ","Paslaugų grupės ir paslaugų pavadinimai","Preliminarios paslaugų apimtys"]
[1,"Želdaviečių paruošimas miškų sodinimui, želdinių ir žėlinių priežiūra, jaunuolynų ugdymas, griovių šlaitų ir pagriovių, pakelių, kvartalinių ir ribinių linijų priežiūra","Mato vnt.","Juodkrantės, Nidos girininkijos 1"]
["Pirkimo objekto dalies numeris",null,null,17]
["1.","Želdavietės paruošimas miško sodmenų sodinimui šalinant nepageidaujamus medžius, krūmus, žolinę augmeniją","ha"]
["2.","Medynų ir krūmynų pertvarkymo kirtimai šalinant nepageidaujamus medžius, krūmus, žolinę augmeniją ","ha",25]
["3.","Miško želdinių ir žėlinių  priežiūra šalinant žabus ir žolinę augmeniją","ha"]
["4.","Jaunuolynų ugdymas ir/ar retinimo kirtimai, negaminant likvidinės medienos ","ha"]
["5.","Griovių šlaitų ir pagriovių priežiūra","ha"]
["6.","Pakelių priežiūra","km"]
["7.","kvartalinių ir ribinių linijų priežūra","km"]
[null,null,null,{"$f":"+D5*301+D7*263+D8*299+D9*301+D10*53+D11*126+D6*301","v":7525}]
[null,null,null,{"$f":"+D12*3*1.3","v":29347.5}]
[]
["3.","Miško sodmenų sodinimas, želdinių ir žėlinių medelių ir jų liemenų apsauga nuo kanopinių žvėrių bei vabzdžių daromos žalos  ","Preliminarios paslaugų apimtys"]
[null,null,"Mato vnt.","Juodkrantės, Nidos girininkijos 2","Juodkrantės, Nidos girininkijos 3","Juodkrantės, Nidos girininkijos 4"]
["Pirkimo objekto dalies numeris",null,null,18,19,20]
["8.","Miško atkūrimas, įveisimas ir atsodinimas (medelių ir krūmų sodinimas)","tūkst. vnt.",30,15,15]
["9.","Želdinių, žėlinių apsauga nuo kanopinių žvėrių bei vabzdžių daromos žalos ","tūkst. vnt."]
["10.","Želdinių, žėlinių ir medelių kamienų apsauga nuo kanopinių žvėrių daromos žalos","tūkst. vnt."]
[null,null,null,{"$f":"+D18*178+D19*27+D20*390","v":5340},{"$f":"+E18*178+E19*27+E20*390","v":2670},2670]
[null,null,null,{"$f":"+D21*3*1.3","v":20826},{"$f":"+E21*3*1.3","v":10413},10413]

{"sheet":"Kuršėnai","index":5,"n_rows":7,"n_cols":4,"rows_kept":7,"cut":false,"hidden":false,"merged":[[0,0,0,9],[3,0,3,2],[1,2,1,3],[1,0,2,0],[1,1,2,1]]}
["VĮ Valstybinių miškų urėdijos Kuršėnų  regioninio padalinio informacija apie perkamus miškininkystės paslaugų kiekius 2025 metams"]
["6.","Šiukšlių rinkimo paslaugos","Preliminarios paslaugų apimtys"]
[null,null,"Mato vnt.","Kuršėnų RP "]
["Pirkimo objekto dalies numeris",null,null,21]
["12.","Šiukšlių rinkimo paslaugos","val.",500]
[null,null,null,{"$f":"+D5*10","v":5000}]
[null,null,null,{"$f":"+D6*3*1.3","v":19500}]

{"sheet":"Mažeikiai","index":6,"n_rows":23,"n_cols":4,"rows_kept":23,"cut":false,"hidden":false,"merged":[[0,0,0,7],[1,0,2,0],[1,1,2,1],[1,2,2,2],[19,0,19,2],[17,0,18,0],[17,1,18,1],[17,2,18,2],[3,0,3,2],[8,0,9,0],[8,1,9,1],[8,2,9,2],[10,0,10,2]]}
["VĮ Valstybinių miškų urėdijos  Mažeikių  regioninio padalinio informacija apie perkamus miškininkystės paslaugų kiekius"]
[2,"Želdavietės paruošimas miško sodmenų sodinimui cheminiu būdu pašalinant nepageidaujamą augmeniją ","Mato vnt.","Preliminarios paslaugų apimtys"]
[null,null,null,"Mažeikių RP 1"]
["Pirkimo objekto dalies numeris",null,null,22]
["7.","Želdavietės paruošimas miško sodmenų sodinimui cheminiu būdu pašalinant nepageidaujamą augmeniją","ha",35]
[null,null,null,{"$f":"+D5*111","v":3885}]
[null,null,null,{"$f":"+D6*3*1.3","v":15151.5}]
[]
["3.","Miško sodmenų sodinimas, želdinių ir žėlinių medelių ir jų liemenų apsauga nuo kanopinių žvėrių bei vabzdžių daromos žalos  ","Mato vnt.","Preliminarios paslaugų apimtys"]
[null,null,null,"Akmenės girininkija"]
["Pirkimo objekto dalies numeris",null,null,23]
["8.","Miško atkūrimas, įveisimas ir atsodinimas (medelių ir krūmų sodinimas)","tūkst. vnt."]
["9.","Želdinių, žėlinių apsauga nuo kanopinių žvėrių bei vabzdžių daromos žalos ","tūkst. vnt.",160]
["10.","Želdinių, žėlinių ir medelių kamienų apsauga nuo kanopinių žvėrių daromos žalos","tūkst. vnt.",10]
[null,null,null,{"$f":"+D12*178+D13*27+D14*390","v":8220}]
[null,null,null,{"$f":"+D15*3*1.3","v":32058}]
[]
["5.","Sodmenų transportavimo paslaugos","Mato vnt.","Preliminarios paslaugų apimtys"]
[null,null,null,"Mažeikių RP 2"]
["Pirkimo objekto dalies numeris",null,null,24]
["12.","Sodmenų transportavimo paslaugos ","km",2000]
[null,null,null,{"$f":"+D21*1.5","v":3000}]
[null,null,null,{"$f":"+D22*3*1.3","v":11700}]

{"sheet":"Nemenčinė","index":7,"n_rows":13,"n_cols":5,"rows_kept":13,"cut":false,"hidden":false,"merged":[[0,0,0,8],[1,2,1,4],[3,0,3,2]]}
["VĮ Valstybinių miškų urėdijos Nemenčinės  regioninio padalinio informacija apie perkamus miškininkystės paslaugų kiekius 2025 metams"]
["Eil. ","Paslaugų grupės ir paslaugų pavadinimai","Preliminarios paslaugų apimtys"]
[1,"Želdaviečių paruošimas miškų sodinimui, želdinių ir žėlinių priežiūra, jaunuolynų ugdymas, griovių šlaitų ir pagriovių, pakelių, kvartalinių ir ribinių linijų priežiūra","Mato vnt.","Arvydų  girininkija 1","Arvydų  girininkija 2"]
["Pirkimo objekto dalies numeris",null,null,25,26]
["1.","Želdavietės paruošimas miško sodmenų sodinimui šalinant nepageidaujamus medžius, krūmus, žolinę augmeniją","ha",6]
["2.","Medynų ir krūmynų pertvarkymo kirtimai šalinant nepageidaujamus medžius, krūmus, žolinę augmeniją ","ha"]
["3.","Miško želdinių ir žėlinių  priežiūra šalinant žabus ir žolinę augmeniją","ha",50,45]
["4.","Jaunuolynų ugdymas ir/ar retinimo kirtimai, negaminant likvidinės medienos ","ha",10,20]
["5.","Griovių šlaitų ir pagriovių priežiūra","ha",1]
["6.","Pakelių priežiūra","km"]
["7.","kvartalinių ir ribinių linijų priežūra","km",6]
[null,null,null,{"$f":"+D5*301+D7*263+D8*299+D9*301+D10*53+D11*126+D6*301","v":19003},{"$f":"+E5*301+E7*263+E8*299+E9*301+E10*53+E11*126+E6*301","v":17815}]
[null,null,null,{"$f":"+D12*3*1.3","v":74111.7},{"$f":"+E12*3*1.3","v":69478.5}]

{"sheet":"Panevėžys","index":8,"n_rows":20,"n_cols":4,"rows_kept":20,"cut":false,"hidden":false,"merged":[[14,0,15,0],[14,1,15,1],[14,2,15,2],[16,0,16,2],[0,0,0,7],[3,0,3,2],[1,2,2,2]]}
["VĮ Valstybinių miškų urėdijos Panevėžio  regioninio padalinio informacija apie perkamus miškininkystės paslaugų kiekius 2025 metams"]
["Eil. ","Paslaugų grupės ir paslaugų pavadinimai","Mato vnt.","Preliminarios paslaugų apimtys"]
[1,"Želdaviečių paruošimas miškų sodinimui, želdinių ir žėlinių priežiūra, jaunuolynų ugdymas, griovių šlaitų ir pagriovių, pakelių, kvartalinių ir ribinių linijų priežiūra",null,"Panevėžio RP 1"]
["Pirkimo objekto dalies numeris",null,null,27]
["1.","Želdavietės paruošimas miško sodmenų sodinimui šalinant nepageidaujamus medžius, krūmus, žolinę augmeniją","ha",20]
["2.","Medynų ir krūmynų pertvarkymo kirtimai šalinant nepageidaujamus medžius, krūmus, žolinę augmeniją ","ha",0]
["3.","Miško želdinių ir žėlinių  priežiūra šalinant žabus ir žolinę augmeniją","ha",5]
["4.","Jaunuolynų ugdymas ir/ar retinimo kirtimai, negaminant likvidinės medienos ","ha",5]
["5.","Griovių šlaitų ir pagriovių priežiūra","ha",0]
["6.","Pakelių priežiūra","km",0]
["7.","kvartalinių ir ribinių linijų priežūra","km",5]
[null,null,null,{"$f":"+D5*301+D7*263+D8*299+D9*301+D10*53+D11*126+D6*301","v":9460}]
[null,null,null,{"$f":"+D12*3*1.3","v":36894}]
[]
[6,"Šiukšlių rinkimo paslaugos","Mato vnt.","Preliminarios paslaugų apimtys"]
[null,null,null,"Panevėžio RP 2"]
["Pirkimo objekto dalies numeris",null,null,28]
["11.","Šiukšlių rinkimo paslaugos","val.",1300]
[null,null,null,{"$f":"+D18*10","v":13000}]
[null,null,null,{"$f":"+D19*3*1.3","v":50700}]

{"sheet":"Prienai","index":9,"n_rows":14,"n_cols":4,"rows_kept":14,"cut":false,"hidden":false,"merged":[[10,0,10,2],[3,0,3,2],[0,0,0,11],[1,0,2,0],[1,1,2,1],[1,2,1,3],[8,0,9,0],[8,1,9,1],[8,2,9,2]]}
["VĮ Valstybinių miškų urėdijos Prienų  regioninio padalinio informacija apie perkamus miškininkystės paslaugų kiekius 2025 metams"]
[2,"Želdavietės paruošimas miško sodmenų sodinimui cheminiu būdu pašalinant nepageidaujamą augmeniją ","Preliminarios paslaugų apimtys"]
[null,null,"Mato vnt.","Prienų RP 1"]
["Pirkimo objekto dalies numeris",null,null,29]
["7.","Želdavietės paruošimas miško sodmenų sodinimui cheminiu būdu pašalinant nepageidaujamą augmeniją","ha",28]
[null,null,null,{"$f":"+D5*111","v":3108}]
[null,null,null,{"$f":"+D6*3*1.3","v":12121.2}]
[]
[6,"Šiukšlių rinkimo paslaugos","Mato vnt.","Preliminarios paslaugų apimtys"]
[null,null,null,"Prienų RP 2"]
["Pirkimo objekto dalies numeris",null,null,30]
["11.","Šiukšlių rinkimo paslaugos","val.",750]
[null,null,null,{"$f":"+D12*10","v":7500}]
[null,null,null,{"$f":"+D13*3*1.3","v":29250}]

{"sheet":"Radviliškis","index":10,"n_rows":9,"n_cols":4,"rows_kept":9,"cut":false,"hidden":false,"merged":[[1,0,2,0],[1,1,2,1],[3,0,3,2],[0,0,0,12],[1,2,1,3]]}
["VĮ Valstybinių miškų urėdijos Radviliškio regioninio padalinio informacija apie perkamus miškininkystės paslaugų kiekius 2025 metams"]
["3.","Miško sodmenų sodinimas, želdinių ir žėlinių medelių ir jų liemenų apsauga nuo kanopinių žvėrių bei vabzdžių daromos žalos  ","Preliminarios paslaugų apimtys"]
[null,null,"Mato vnt.","Ąžuolo, Gudžiūnų girininkijos "]
["Pirkimo objekto dalies numeris",null,null,31]
["8.","Miško atkūrimas, įveisimas ir atsodinimas (medelių ir krūmų sodinimas)","tūkst. vnt."]
["9.","Želdinių, žėlinių apsauga nuo kanopinių žvėrių bei vabzdžių daromos žalos ","tūkst. vnt."]
["10.","Želdinių, žėlinių ir medelių kamienų apsauga nuo kanopinių žvėrių daromos žalos","tūkst. vnt.",35]
[null,null,null,{"$f":"+D5*178+D6*27+D7*390","v":13650}]
[null,null,null,{"$f":"+D8*3*1.3","v":53235}]

{"sheet":"Raseiniai","index":11,"n_rows":7,"n_cols":4,"rows_kept":7,"cut":false,"hidden":false,"merged":[[0,0,0,7],[3,0,3,2],[1,0,2,0],[1,1,2,1],[1,2,1,3]]}
["VĮ Valstybinių miškų urėdijos Raseinių regioninio padalinio informacija apie perkamus miškininkystės paslaugų kiekius 2025 metams"]
[2,"Želdavietės paruošimas miško sodmenų sodinimui cheminiu būdu pašalinant nepageidaujamą augmeniją ","Preliminarios paslaugų apimtys"]
[null,null,"Mato vnt.","Raseinių RP "]
["Pirkimo objekto dalies numeris",null,null,32]
["7.","Želdavietės paruošimas miško sodmenų sodinimui cheminiu būdu pašalinant nepageidaujamą augmeniją","ha",93]
[null,null,null,{"$f":"+D5*111","v":10323}]
[null,null,null,{"$f":"+D6*3*1.3","v":40259.700000000004}]

{"sheet":"Šalčininkai","index":12,"n_rows":7,"n_cols":6,"rows_kept":7,"cut":false,"hidden":false,"merged":[[0,0,0,9],[1,0,2,0],[1,1,2,1],[3,0,3,2],[1,2,1,5]]}
["VĮ Valstybinių miškų urėdijos Šalčininkų  regioninio padalinio informacija apie perkamus miškininkystės paslaugų kiekius 2025 metams"]
["6.","Šiukšlių rinkimo paslaugos","Preliminarios paslaugų apimtys"]
[null,null,"Mato vnt.","Parudaminos girininkija","Poškonių girininkija","Šalčininkėlių girininkija"]
["Pirkimo objekto dalies numeris",null,null,33,34,35]
["12.","Šiukšlių rinkimo paslaugos","val.",80,80,30]
[null,null,null,{"$f":"+D5*10","v":800},{"$f":"+E5*10","v":800},300]
[null,null,null,{"$f":"+D6*3*1.3","v":3120},{"$f":"+E6*3*1.3","v":3120},1170]

{"sheet":"Trakai","index":13,"n_rows":7,"n_cols":4,"rows_kept":7,"cut":false,"hidden":false,"merged":[[3,0,3,2],[1,2,1,3],[0,0,0,12],[1,0,2,0],[1,1,2,1]]}
["VĮ Valstybinių miškų urėdijos Trakų regioninio padalinio informacija apie perkamus miškininkystės paslaugų kiekius 2025 metams"]
["6.","Šiukšlių rinkimo paslaugos","Preliminarios paslaugų apimtys"]
[null,null,"Mato vnt.","Trakų RP "]
["Pirkimo objekto dalies numeris",null,null,36]
["12.","Šiukšlių rinkimo paslaugos","val.",1000]
[null,null,null,{"$f":"+D5*10","v":10000}]
[null,null,null,{"$f":"+D6*3*1.3","v":39000}]

{"sheet":"Ukmergės","index":14,"n_rows":13,"n_cols":5,"rows_kept":13,"cut":false,"hidden":false,"merged":[[3,0,3,2],[0,0,0,7],[1,2,1,4]]}
["VĮ Valstybinių miškų urėdijos  Ukmergės regioninio padalinio informacija apie perkamus miškininkystės paslaugų kiekius 2025 metams"]
["Eil. ","Paslaugų grupės ir paslaugų pavadinimai","Preliminarios paslaugų apimtys"]
[1,"Želdaviečių paruošimas miškų sodinimui, želdinių ir žėlinių priežiūra, jaunuolynų ugdymas, griovių šlaitų ir pagriovių, pakelių, kvartalinių ir ribinių linijų priežiūra","Mato vnt.","Taujėnų girininkija 1","Taujėnų girininkija  2"]
["Pirkimo objekto dalies numeris",null,null,37,38]
["1.","Želdavietės paruošimas miško sodmenų sodinimui šalinant nepageidaujamus medžius, krūmus, žolinę augmeniją","ha"]
["2.","Medynų ir krūmynų pertvarkymo kirtimai šalinant nepageidaujamus medžius, krūmus, žolinę augmeniją ","ha"]
["3.","Miško želdinių ir žėlinių  priežiūra šalinant žabus ir žolinę augmeniją","ha",60,60]
["4.","Jaunuolynų ugdymas ir/ar retinimo kirtimai, negaminant likvidinės medienos ","ha"]
["5.","Griovių šlaitų ir pagriovių priežiūra","ha",3,3]
["6.","Pakelių priežiūra","km",4,4]
["7.","kvartalinių ir ribinių linijų priežūra","km",8,8]
[null,null,null,{"$f":"+D5*301+D7*263+D8*299+D9*301+D10*53+D11*126+D6*301","v":17903},{"$f":"+E5*301+E7*263+E8*299+E9*301+E10*53+E11*126","v":17903}]
[null,null,null,{"$f":"+D12*3*1.3","v":69821.7},{"$f":"+E12*3*1.3","v":69821.7}]